bitfinex-derivatives/quotes_BTCF0:USTF0_20250129
["timestamp","ask_amount","ask_price","bid_price","bid_amount"]
[1738143808749,0.23857382,102500.0,102490.0,0.96961286]
[1738143809961,0.23857382,102500.0,102490.0,0.97952701]
[1738143810254,0.09329915,102500.0,102490.0,0.97952701]
[1738143814960,0.09329915,102500.0,102490.0,0.99416701]
[1738143816560,0.09329915,102500.0,102490.0,1.01698239]
[1738143820468,0.06948959,102500.0,102490.0,1.01698239]
[1738143821570,0.04019949,102500.0,102490.0,1.01698239]
[1738143823370,0.04019949,102500.0,102490.0,0.65618239]
[1738143823559,0.04019949,102500.0,102490.0,1.01698239]
[1738143830283,0.00982259,102520.0,102510.0,0.19519]
[1738143830470,0.71764174,102530.0,102520.0,0.195171]
[1738143830676,0.71764174,102530.0,102520.0,0.33108206]
[1738143830864,0.71764174,102530.0,102520.0,0.42864779]
[1738143832270,0.72364174,102530.0,102520.0,0.42964779]
[1738143832873,0.72364174,102530.0,102520.0,0.52412779]
[1738143833373,0.72564174,102530.0,102520.0,0.52412779]
[1738143833774,0.73546433,102530.0,102520.0,0.52412779]
[1738143834067,0.47382259,102530.0,102520.0,0.52412779]
[1738143834675,0.47382259,102530.0,102520.0,0.53876779]
[1738143834877,0.47382259,102530.0,102520.0,0.52412779]
[1738143836671,0.47282259,102530.0,102520.0,0.52412779]
[1738143837376,0.46882259,102530.0,102520.0,0.52312779]
[1738143837571,0.51680312,102530.0,102520.0,0.235121]
[1738143837778,0.71195512,102530.0,102520.0,0.235121]
[1738143838177,0.71195512,102530.0,102520.0,0.195171]
[1738143838577,0.71195512,102530.0,102520.0,0.23514904]
[1738143839071,0.71195512,102530.0,102520.0,0.28312957]
[1738143839673,0.82832219,102530.0,102520.0,0.28312957]
[1738143839871,0.78034166,102530.0,102520.0,0.28312957]
[1738143840680,0.78034166,102530.0,102520.0,0.23514904]
[1738143843075,0.85344464,102530.0,102520.0,0.23514904]
[1738143843277,0.85344464,102530.0,102520.0,0.03997804]
[1738143843476,0.195171,102520.0,102510.0,0.19533213]
[1738143843675,0.555971,102520.0,102510.0,0.19533213]
[1738143843873,0.555971,102520.0,102510.0,0.23496927]
[1738143843874,0.62907398,102520.0,102510.0,0.23496927]
[1738143844074,0.555971,102520.0,102510.0,0.19533213]
[1738143845483,0.67233807,102520.0,102510.0,0.19633213]
[1738143845677,0.67233807,102520.0,102510.0,0.00114613]
[1738143848786,0.81761274,102520.0,102510.0,0.00114613]
[1738143849092,0.89071572,102520.0,102510.0,0.00114613]
[1738143850674,1.25151572,102520.0,102510.0,0.00114613]
[1738143860684,1.22640612,102520.0,102510.0,0.00114613]
[1738143861200,1.08113145,102520.0,102510.0,0.00114613]
[1738143861591,1.12912483,102520.0,102510.0,0.00114613]
[1738143861896,0.19519,102510.0,102500.0,0.195202]
[1738143862086,0.69828338,102510.0,102500.0,0.195202]
[1738143862987,0.69828338,102510.0,102500.0,0.196202]
[1738143864498,0.69828338,102510.0,102500.0,0.200202]
[1738143866296,0.33748338,102510.0,102500.0,0.200202]
[1738143866498,0.69828338,102510.0,102500.0,0.200202]
[1738143866800,0.45385045,102510.0,102500.0,0.200202]
[1738143866992,0.81465045,102510.0,102500.0,0.200202]
[1738143867492,0.45385045,102510.0,102500.0,0.200202]
[1738143867804,0.81465045,102510.0,102500.0,0.200202]
[1738143867997,0.45385045,102510.0,102500.0,0.200202]
[1738143868197,0.81465045,102510.0,102500.0,0.200202]
[1738143870091,0.82462821,102510.0,102500.0,0.200202]
[1738143870299,0.46382821,102510.0,102500.0,0.200202]
[1738143870498,0.82462821,102510.0,102500.0,0.200202]
[1738143873793,0.96990288,102510.0,102500.0,0.200202]
[1738143874594,0.60910288,102510.0,102500.0,0.23985092]
[1738143874798,0.96990288,102510.0,102500.0,0.23985092]
[1738143876396,0.60910288,102510.0,102500.0,0.23985092]
[1738143876604,0.96990288,102510.0,102500.0,0.23985092]
[1738143876900,0.85353581,102510.0,102500.0,0.23985092]
[1738143882100,0.75923581,102510.0,102500.0,0.2878443]
[1738143882403,0.75923581,102510.0,102500.0,0.3489443]
[1738143882604,0.71124243,102510.0,102500.0,0.33385092]
[1738143883206,0.71124243,102510.0,102500.0,0.3818443]
[1738143885205,0.75923581,102510.0,102500.0,0.3818443]
[1738143886401,0.8757585,102510.0,102500.0,0.3818443]
[1738143886608,0.8757585,102510.0,102500.0,0.33385092]
[1738143890407,0.5149585,102510.0,102500.0,0.33385092]
[1738143890605,0.26179736,102510.0,102500.0,1.08846425]
[1738143891003,0.16199736,102510.0,102500.0,1.12876886]
[1738143892403,0.00014613,102520.0,102510.0,0.19519]
[1738143892606,0.11652269,102530.0,102510.0,0.53674029]
[1738143892911,0.11652269,102530.0,102520.0,0.65195776]
[1738143893115,0.11652269,102530.0,102520.0,0.69160668]
[1738143893309,0.11652269,102530.0,102520.0,0.79632151]
[1738143893513,0.11652269,102530.0,102520.0,0.83662612]
[1738143893811,0.11652269,102530.0,102520.0,0.93416806]
[1738143894106,0.11652269,102530.0,102520.0,0.89386345]
[1738143894309,0.11652269,102530.0,102520.0,0.95796345]
[1738143894497,0.11652269,102530.0,102520.0,0.97260345]
[1738143894702,0.11652269,102530.0,102520.0,1.01290806]
[1738143895213,0.11652269,102530.0,102520.0,0.97260345]
[1738143895399,0.12052269,102530.0,102520.0,0.97260345]
[1738143895604,0.12052269,102530.0,102520.0,1.02059683]
[1738143895802,0.12052269,102530.0,102520.0,0.97260345]
[1738143896204,0.12052269,102530.0,102520.0,1.02059683]
[1738143896603,0.12052269,102530.0,102520.0,0.94968407]
[1738143897311,0.004,102530.0,102520.0,0.94968407]
[1738143897612,0.004,102530.0,102520.0,1.04400407]
[1738143898314,0.004,102530.0,102520.0,1.0536239]
[1738143898510,0.67357469,102560.0,102550.0,0.195114]
[1738143898708,0.67357469,102560.0,102550.0,0.26818138]
[1738143898911,0.47847269,102560.0,102550.0,0.26818138]
[1738143899207,0.47847269,102560.0,102550.0,0.37349169]
[1738143899407,0.47847269,102560.0,102550.0,0.26818138]
[1738143899601,0.48807412,102560.0,102550.0,0.26818138]
[1738143899816,0.37455143,102560.0,102550.0,0.26818138]
[1738143900008,0.38355143,102560.0,102550.0,0.26918138]
[1738143904416,0.38355143,102560.0,102550.0,0.196114]
[1738143904807,0.41525143,102560.0,102550.0,0.196114]
[1738143905008,0.71671381,102560.0,102550.0,0.001]
[1738143906408,2.21671381,102560.0,102550.0,0.001]
[1738143906611,2.21671381,102560.0,102550.0,0.196114]
[1738143906809,2.14364643,102560.0,102550.0,0.196114]
[1738143907506,2.21671381,102560.0,102550.0,0.196114]
[1738143908217,0.71671381,102560.0,102550.0,0.196114]
[1738143908919,0.52161881,102560.0,102540.0,0.19527613]
[1738143909112,0.65898138,102550.0,102540.0,0.1879492]
[1738143909313,0.46386738,102550.0,102520.0,0.21875638]
[1738143909507,0.620439,102540.0,102530.0,0.195142]
[1738143910721,0.622439,102540.0,102530.0,0.195142]
[1738143912719,0.623439,102540.0,102530.0,0.195142]
[1738143913222,0.623439,102540.0,102530.0,0.26820938]
[1738143914220,0.035,102540.0,102530.0,0.62900938]
[1738143914522,0.035,102540.0,102530.0,0.73162618]
[1738143914523,0.003,102540.0,102530.0,0.73162618]
[1738143914722,0.003,102540.0,102530.0,0.74626618]
[1738143915820,0.003,102540.0,102530.0,0.84379385]
[1738143916823,0.003,102540.0,102530.0,0.88327973]
[1738143920523,0.003,102540.0,102530.0,0.95634711]
[1738143921027,0.003,102540.0,102530.0,0.88327973]
[1738143921226,0.003,102540.0,102530.0,0.92358434]
[1738143921524,0.003,102540.0,102530.0,0.88327973]
[1738143921827,0.002,102540.0,102530.0,0.88327973]
[1738143922814,0.19526013,102550.0,102530.0,0.78237773]
[1738143923016,0.19526013,102550.0,102540.0,0.195133]
[1738143923219,0.55606013,102550.0,102540.0,0.23461888]
[1738143923420,0.43401351,102550.0,102530.0,0.290384]
[1738143923621,0.289633,102540.0,102530.0,0.23571075]
[1738143924028,0.289633,102540.0,102530.0,0.23471075]
[1738143924225,0.289633,102540.0,102530.0,0.23571075]
[1738143924631,0.650433,102540.0,102530.0,0.23571075]
[1738143926331,0.73766148,102540.0,102530.0,0.23571075]
[1738143928037,0.73766148,102540.0,102530.0,0.04056675]
[1738143928038,0.82053416,102540.0,102530.0,0.04056675]
[1738143928229,0.74746678,102540.0,102530.0,0.001]
[1738143928828,0.71496678,102540.0,102530.0,0.30886113]
[1738143929138,0.35416678,102540.0,102530.0,0.30886113]
[1738143930036,0.47068947,102540.0,102530.0,0.30886113]
[1738143932235,0.47068947,102540.0,102530.0,0.23579375]
[1738143932632,0.50138947,102540.0,102530.0,0.23579375]
[1738143932930,0.2976383,102540.0,102530.0,0.23579375]
[1738143933134,0.37070568,102540.0,102530.0,0.23579375]
[1738143933839,0.2976383,102540.0,102530.0,0.23579375]
[1738143934138,0.2976383,102540.0,102530.0,0.30886113]
[1738143935641,0.38486678,102540.0,102530.0,0.30886113]
[1738143937238,0.38486678,102540.0,102530.0,0.23579375]
[1738143949245,0.38486678,102540.0,102530.0,0.30886113]
[1738143950152,0.38486678,102540.0,102530.0,0.23579375]
[1738143952557,0.38486678,102540.0,102530.0,0.2837563]
[1738143955757,0.50138947,102540.0,102530.0,0.2837563]
[1738143964553,0.47068947,102540.0,102530.0,0.2837563]
[1738143964757,0.44008947,102540.0,102530.0,0.2837563]
[1738143965258,0.47178947,102540.0,102530.0,0.23579375]
[1738143965458,0.46412354,102540.0,102530.0,0.23579375]
[1738143965656,0.82492354,102540.0,102530.0,0.23579375]
[1738143966060,0.82492354,102540.0,102530.0,0.04064175]
[1738143967766,0.82492354,102540.0,102530.0,0.23579375]
[1738143968462,0.97032273,102540.0,102530.0,0.23579375]
[1738143969870,0.97032273,102540.0,102530.0,0.04064175]
[1738143974663,1.01828528,102540.0,102530.0,0.04064175]
[1738143974861,1.01828528,102540.0,102520.0,0.00014613]
[1738143974862,0.82315228,102540.0,102520.0,0.00014613]
[1738143975062,0.60391455,102530.0,102520.0,0.03985409]
[1738143975462,2.10391455,102530.0,102520.0,0.03985409]
[1738143975966,0.60391455,102530.0,102520.0,0.03985409]
[1738143976162,0.60391455,102530.0,102520.0,0.04085409]
[1738143976763,0.60391455,102530.0,102520.0,0.00114613]
[1738143977273,0.60391455,102530.0,102500.0,0.6678267]
[1738143977274,0.4567251,102530.0,102500.0,0.03326315]
[1738143977462,0.60395255,102510.0,102500.0,0.00146315]
[1738143977663,0.55599,102510.0,102500.0,0.08874354]
[1738143978067,0.60395255,102510.0,102500.0,0.04078099]
[1738143978464,0.60395255,102510.0,102500.0,0.04978099]
[1738143978664,0.62913771,102510.0,102500.0,0.05278099]
[1738143979666,0.55599,102510.0,102500.0,0.05278099]
[1738143979867,0.55599,102510.0,102500.0,0.04378099]
[1738143980069,0.55699,102510.0,102500.0,0.05278099]
[1738143980466,0.55699,102510.0,102500.0,0.04378099]
[1738143980766,0.55699,102510.0,102500.0,0.05078099]
[1738143981274,0.55699,102510.0,102500.0,0.04778099]
[1738143981572,0.55699,102510.0,102500.0,0.04978099]
[1738143983067,0.55699,102510.0,102500.0,0.01046315]
[1738143983765,0.51699,102510.0,102500.0,0.01046315]
[1738143984368,0.60437166,102510.0,102500.0,0.01046315]
[1738143985076,0.6142218,102510.0,102500.0,0.01046315]
[1738143991082,0.52684014,102510.0,102500.0,0.01046315]
[1738143991874,0.56684014,102510.0,102500.0,0.01046315]
[1738144000585,0.61483386,102510.0,102500.0,0.05845687]
[1738144000986,0.56684014,102510.0,102500.0,0.05845687]
[1738144004684,0.6542218,102510.0,102500.0,0.25366587]
[1738144006083,0.0982318,102510.0,102500.0,0.80785286]
[1738144006284,0.0982318,102510.0,102500.0,0.97130907]
[1738144007783,0.0982318,102510.0,102500.0,1.01170385]
[1738144010094,0.0982318,102510.0,102500.0,0.97130907]
[1738144010295,0.08838166,102510.0,102500.0,1.01170385]
[1738144010690,0.001,102510.0,102500.0,1.36265516]
[1738144012793,0.001,102510.0,102500.0,1.00185516]
[1738144012997,0.001,102510.0,102500.0,1.36265516]
[1738144014600,0.001,102510.0,102500.0,1.37729516]
[1738144020502,0.001,102510.0,102500.0,1.73809516]
[1738144021302,0.001,102510.0,102500.0,1.69770038]
[1738144021498,0.001,102510.0,102500.0,1.73809516]
[1738144022811,0.001,102510.0,102500.0,1.69770038]
[1738144023606,0.04899372,102510.0,102500.0,1.61680666]
[1738144023799,0.24418372,102510.0,102500.0,1.67800666]
[1738144024200,0.24418372,102510.0,102500.0,1.71840144]
[1738144024507,0.19619,102510.0,102500.0,1.71840144]
[1738144024704,0.19619,102510.0,102500.0,1.50341459]
[1738144024902,0.24418372,102510.0,102500.0,1.35786466]
[1738144025099,0.24418372,102510.0,102500.0,1.40585838]
[1738144025700,0.24418372,102510.0,102500.0,1.05490707]
[1738144026109,0.19619,102510.0,102500.0,1.05490707]
[1738144029411,0.24418372,102510.0,102500.0,0.04970957]
[1738144029612,0.60498372,102510.0,102500.0,0.04970957]
[1738144031012,0.69236538,102510.0,102500.0,0.04970957]
[1738144031216,0.69236538,102510.0,102500.0,0.09770329]
[1738144034018,0.69236538,102510.0,102500.0,0.04970957]
[1738144037520,0.80888807,102510.0,102500.0,0.04970957]
[1738144038319,0.85688179,102510.0,102500.0,4.2e-07]
[1738144038518,0.195228,102490.0,102480.0,0.35105701]
[1738144038718,0.195247,102480.0,102470.0,0.79679969]
[1738144039025,2.18223444,102480.0,102470.0,0.68051306]
[1738144039323,0.195266,102470.0,102460.0,1.11071588]
[1738144039622,0.65205344,102470.0,102460.0,1.11071588]
[1738144039812,0.65212904,102470.0,102460.0,1.11071588]
[1738144040513,0.92938979,102470.0,102460.0,0.37505249]
[1738144040718,0.92938979,102470.0,102460.0,0.12585249]
[1738144041115,0.92938979,102470.0,102450.0,0.00014613]
[1738144041116,0.195285,102460.0,102450.0,0.00014613]
[1738144041321,0.62933319,102460.0,102450.0,0.00014613]
[1738144041816,2.12933319,102460.0,102450.0,0.00014613]
[1738144042215,2.12933319,102460.0,102450.0,0.00214613]
[1738144042709,2.13033319,102460.0,102450.0,0.00714613]
[1738144043713,2.39152852,102460.0,102450.0,0.00714613]
[1738144044726,0.89152852,102460.0,102450.0,0.00714613]
[1738144045525,0.89152852,102460.0,102450.0,0.29575013]
[1738144045526,0.82817729,102460.0,102450.0,0.29575013]
[1738144046620,0.90142548,102460.0,102450.0,0.29575013]
[1738144046927,0.64023015,102460.0,102450.0,0.10044613]
[1738144047427,0.44494515,102460.0,102440.0,0.14926583]
[1738144047622,0.556104,102450.0,102440.0,0.14926583]
[1738144048628,0.556104,102450.0,102440.0,0.15226583]
[1738144048927,0.557104,102450.0,102440.0,0.15826583]
[1738144050522,0.196304,102450.0,102440.0,0.23151402]
[1738144050716,0.196304,102450.0,102440.0,0.32831402]
[1738144051124,0.196304,102450.0,102440.0,0.25506583]
[1738144055031,0.196304,102450.0,102440.0,0.32831402]
[1738144055231,0.001,102450.0,102440.0,0.89595292]
[1738144056127,0.001,102450.0,102440.0,0.53515292]
[1738144059036,0.001,102450.0,102440.0,0.89595292]
[1738144059535,0.001,102450.0,102440.0,0.53515292]
[1738144060136,0.001,102450.0,102440.0,0.89595292]
[1738144061433,0.20264985,102460.0,102440.0,0.74668709]
[1738144061640,0.20264985,102460.0,102450.0,0.70260038]
[1738144062039,0.10284985,102460.0,102450.0,0.84517832]
[1738144062331,0.10284985,102460.0,102450.0,0.94279167]
[1738144062530,0.05294985,102460.0,102450.0,0.94279167]
[1738144062938,0.05394985,102460.0,102450.0,0.94479167]
[1738144063735,0.05394985,102460.0,102450.0,1.04203167]
[1738144064737,0.05394985,102460.0,102450.0,1.04403167]
[1738144064938,0.001,102460.0,102450.0,1.04403167]
[1738144066140,0.00022173,102470.0,102460.0,0.195285]
[1738144066335,0.00022173,102470.0,102460.0,0.70034744]
[1738144066644,0.00022173,102470.0,102460.0,0.81077289]
[1738144066825,0.00022173,102470.0,102460.0,0.90836719]
[1738144067435,0.00022173,102470.0,102460.0,0.90936719]
[1738144067841,0.00022173,102470.0,102460.0,0.97576719]
[1738144069433,0.00022173,102470.0,102460.0,0.902519]
[1738144071145,0.62953592,102470.0,102460.0,0.04271425]
[1738144071345,0.62953592,102470.0,102460.0,0.004]
[1738144073347,0.80361032,102470.0,102460.0,0.004]
[1738144075941,0.195302,102460.0,102440.0,0.372056]
[1738144076251,0.556104,102450.0,102440.0,0.67787827]
[1738144076842,0.556104,102450.0,102440.0,0.58047827]
[1738144077140,0.195304,102450.0,102440.0,0.58347827]
[1738144077335,0.196304,102450.0,102440.0,0.58447827]
[1738144077540,0.557104,102450.0,102440.0,0.58447827]
[1738144078444,0.557104,102450.0,102440.0,0.58147827]
[1738144078650,0.70255577,102450.0,102440.0,0.58447827]
[1738144080956,0.557104,102450.0,102440.0,0.58447827]
[1738144081654,0.5667172,102450.0,102440.0,0.58447827]
[1738144082257,0.3714132,102450.0,102440.0,0.58447827]
[1738144082447,0.3618,102450.0,102440.0,0.58447827]
[1738144082647,0.001,102450.0,102440.0,0.94527827]
[1738144085053,0.001,102450.0,102440.0,0.98567305]
[1738144085849,0.001,102450.0,102440.0,0.94527827]
[1738144086456,0.001,102450.0,102440.0,0.58447827]
[1738144086653,0.001,102450.0,102440.0,1.30607827]
[1738144087150,0.001,102450.0,102440.0,1.31564956]
[1738144090257,0.001,102450.0,102440.0,0.59404956]
[1738144090452,0.001,102450.0,102440.0,1.31564956]
[1738144094868,0.001,102450.0,102440.0,1.33032956]
[1738144097267,0.001,102450.0,102440.0,1.37072434]
[1738144100470,0.001,102450.0,102440.0,1.33032956]
[1738144101163,0.001,102450.0,102440.0,1.37072434]
[1738144101770,0.001,102450.0,102440.0,1.33032956]
[1738144102868,0.001,102450.0,102440.0,1.42816956]
[1738144104477,0.001,102450.0,102440.0,1.46856434]
[1738144112278,0.14545177,102460.0,102440.0,1.34649653]
[1738144112467,0.14545177,102460.0,102450.0,0.70260038]
[1738144112773,0.17476385,102470.0,102460.0,0.195285]
[1738144112973,0.17476385,102470.0,102460.0,0.70861351]
[1738144113176,0.17476385,102470.0,102460.0,0.70419537]
[1738144113476,0.17476385,102470.0,102460.0,0.74459015]
[1738144113678,0.17476385,102470.0,102460.0,0.80180395]
[1738144113882,0.17476385,102470.0,102460.0,0.84219873]
[1738144114069,0.17476385,102470.0,102460.0,0.87505214]
[1738144114776,0.17476385,102470.0,102460.0,0.88969214]
[1738144115179,0.17476385,102470.0,102460.0,0.89169214]
[1738144115486,0.17476385,102470.0,102460.0,0.95429214]
[1738144115675,0.17476385,102470.0,102460.0,0.99468692]
[1738144117077,0.00022173,102470.0,102460.0,0.99468692]
[1738144119479,0.00022173,102470.0,102460.0,0.95429214]
[1738144119682,0.00022173,102470.0,102460.0,1.06306839]
[1738144124282,0.00022173,102470.0,102460.0,1.05317214]
[1738144124994,0.00022173,102470.0,102460.0,0.95429214]
[1738144125177,0.00022173,102470.0,102460.0,1.09268692]
[1738144125879,0.00022173,102470.0,102460.0,1.05229214]
[1738144128588,0.19548773,102470.0,102460.0,0.91744395]
[1738144128981,0.20540267,102470.0,102460.0,0.99069214]
[1738144129684,0.20540267,102470.0,102460.0,0.93308692]
[1738144129890,0.20540267,102470.0,102460.0,0.72183537]
[1738144130189,0.20540267,102470.0,102460.0,0.79508356]
[1738144132786,0.20540267,102470.0,102460.0,0.72183537]
[1738144133003,0.20540267,102470.0,102460.0,0.79508356]
[1738144133193,0.01013667,102470.0,102460.0,0.89267786]
[1738144135591,0.12670603,102470.0,102460.0,0.89267786]
[1738144135990,0.12670603,102470.0,102460.0,0.53187786]
[1738144136199,0.12670603,102470.0,102460.0,0.89267786]
[1738144136993,0.12670603,102470.0,102460.0,0.53187786]
[1738144137200,0.12670603,102470.0,102460.0,0.89267786]
[1738144138503,0.11679109,102470.0,102460.0,0.89267786]
[1738144138703,0.11679109,102470.0,102460.0,0.95407786]
[1738144141608,0.11679109,102470.0,102460.0,0.99447264]
[1738144144612,0.11679109,102470.0,102460.0,0.96924525]
[1738144145101,0.11679109,102470.0,102460.0,0.60844525]
[1738144145302,0.11679109,102470.0,102460.0,0.56805047]
[1738144147305,0.11679109,102470.0,102460.0,0.92885047]
[1738144147514,0.11679109,102470.0,102460.0,0.56805047]
[1738144149317,0.11679109,102470.0,102460.0,0.92885047]
[1738144150215,0.11679109,102470.0,102460.0,0.97687127]
[1738144152315,0.11679109,102470.0,102460.0,1.01726605]
[1738144154309,0.11679109,102470.0,102460.0,0.97687127]
[1738144154510,0.11679109,102470.0,102460.0,1.01025207]
[1738144154711,0.11679109,102470.0,102460.0,1.02489207]
[1738144155619,0.11679109,102470.0,102460.0,1.06528685]
[1738144156916,0.11679109,102470.0,102460.0,1.01726605]
[1738144157115,0.00022173,102470.0,102460.0,1.01726605]
[1738144157320,0.00022173,102470.0,102460.0,0.96924525]
[1738144157622,0.00022173,102470.0,102460.0,1.11230605]
[1738144160524,0.00022173,102470.0,102460.0,1.08943555]
[1738144162821,0.00022173,102470.0,102460.0,0.72863555]
[1738144163121,0.00022173,102470.0,102460.0,1.08943555]
[1738144166718,0.00022173,102470.0,102460.0,1.09051555]
[1738144166917,0.00022173,102470.0,102460.0,1.05012077]
[1738144167624,0.00022173,102470.0,102460.0,0.95400077]
[1738144167924,0.00022173,102470.0,102460.0,0.59494445]
[1738144168125,0.00022173,102470.0,102460.0,0.49902445]
[1738144168525,0.00022173,102470.0,102460.0,0.57219555]
[1738144169121,0.00022173,102470.0,102460.0,0.93299555]
[1738144169321,0.00022173,102470.0,102460.0,0.57219555]
[1738144169521,0.19548773,102470.0,102460.0,0.57219555]
[1738144171322,0.31205709,102470.0,102460.0,0.57219555]
[1738144172221,0.32194337,102470.0,102460.0,0.57219555]
[1738144173929,0.68274337,102470.0,102460.0,0.57219555]
[1738144174113,0.68274337,102470.0,102460.0,0.37515962]
[1738144174318,0.68274337,102470.0,102460.0,0.33476484]
[1738144174827,0.32194337,102470.0,102460.0,0.34940484]
[1738144175426,0.32194337,102470.0,102460.0,0.33476484]
[1738144175826,0.32194337,102470.0,102460.0,0.44833072]
[1738144176325,0.32194337,102470.0,102460.0,0.40793594]
[1738144177226,0.46783552,102470.0,102460.0,0.40793594]
[1738144180331,0.32194337,102470.0,102460.0,0.40793594]
[1738144182527,0.32194337,102470.0,102460.0,0.38278879]
[1738144184228,0.12667737,102470.0,102460.0,0.79161274]
[1738144184532,0.12667737,102470.0,102460.0,0.43081274]
[1738144185328,0.12667737,102470.0,102460.0,0.38278879]
[1738144186133,0.21411645,102470.0,102460.0,0.38278879]
[1738144186724,0.40938245,102470.0,102460.0,0.38278879]
[1738144188741,0.68274337,102470.0,102460.0,0.38278879]
[1738144189033,0.73076732,102470.0,102460.0,0.04188554]
[1738144191839,0.93463223,102470.0,102460.0,0.04188554]
[1738144193435,0.93463223,102470.0,102460.0,0.003]
[1738144197040,0.78874008,102470.0,102460.0,0.003]
[1738144198638,0.74071613,102470.0,102460.0,0.05102395]
[1738144199337,0.74071613,102470.0,102460.0,0.08996896]
[1738144199544,0.74071613,102470.0,102460.0,0.08796896]
[1738144199733,0.74471613,102470.0,102460.0,0.08796896]
[1738144200444,0.74471613,102470.0,102460.0,0.28325396]
[1738144200744,0.74671613,102470.0,102460.0,0.28225396]
[1738144204150,0.19065013,102470.0,102460.0,0.73288994]
[1738144204447,0.18076385,102470.0,102460.0,1.00117959]
[1738144205141,0.18076385,102470.0,102460.0,0.95315564]
[1738144206142,0.7848538,102470.0,102460.0,0.08075704]
[1738144206342,0.81037199,102470.0,102460.0,0.03894501]
[1738144206544,0.195285,102460.0,102450.0,0.04217555]
[1738144206744,0.7483329,102460.0,102450.0,0.08116489]
[1738144206945,0.7483329,102460.0,102450.0,0.03913547]
[1738144207351,0.7483329,102460.0,102450.0,0.00014613]
[1738144208247,0.7493329,102460.0,102450.0,0.00014613]
[1738144208447,0.92387502,102460.0,102450.0,0.00014613]
[1738144208651,0.901053,102460.0,102450.0,0.00014613]
[1738144209643,0.902053,102460.0,102450.0,0.00014613]
[1738144212147,0.195304,102450.0,102440.0,0.22686449]
[1738144212455,0.556104,102450.0,102440.0,0.22686449]
[1738144213346,0.556104,102450.0,102440.0,0.22986449]
[1738144214456,0.195304,102450.0,102440.0,0.22986449]
[1738144214654,0.556104,102450.0,102440.0,0.22986449]
[1738144216551,0.81794422,102450.0,102440.0,0.22986449]
[1738144219359,0.45714422,102450.0,102440.0,0.22986449]
[1738144219560,0.81794422,102450.0,102440.0,0.22986449]
[1738144222055,0.8911701,102450.0,102440.0,0.198323]
[1738144222656,0.8911701,102450.0,102440.0,0.003]
[1738144225063,0.803872,102450.0,102440.0,0.003]
[1738144228566,0.77871056,102450.0,102440.0,0.003]
[1738144228969,2.27871056,102450.0,102440.0,0.003]
[1738144230259,0.77871056,102450.0,102440.0,0.003]
[1738144237863,0.77871056,102450.0,102440.0,0.198323]
[1738144238066,0.77871056,102450.0,102440.0,0.228723]
[1738144239070,0.17454212,102450.0,102440.0,0.68565188]
[1738144239271,0.17454212,102450.0,102440.0,0.97375271]
[1738144239571,0.17454212,102450.0,102440.0,0.92568827]
[1738144240772,0.17454212,102450.0,102440.0,0.56488827]
[1738144241473,0.20377178,102450.0,102440.0,0.56488827]
[1738144241676,0.20377178,102450.0,102440.0,0.92568827]
[1738144242269,0.20377178,102450.0,102440.0,0.97375271]
[1738144245382,0.08733076,102450.0,102440.0,0.97375271]
[1738144247084,0.08733076,102450.0,102440.0,1.06871271]
[1738144247987,0.76973552,102460.0,102440.0,0.87338971]
[1738144248287,0.76973552,102460.0,102450.0,0.30666844]
[1738144248581,0.76973552,102460.0,102450.0,0.34558689]
[1738144248790,0.76973552,102460.0,102450.0,0.45503283]
[1738144250088,0.77073552,102460.0,102450.0,0.45503283]
[1738144250482,0.77173552,102460.0,102450.0,0.45503283]
[1738144253490,0.41093552,102460.0,102450.0,0.45503283]
[1738144253679,0.77173552,102460.0,102450.0,0.45503283]
[1738144254694,0.77173552,102460.0,102450.0,0.46971283]
[1738144254884,0.77173552,102460.0,102450.0,0.43079438]
[1738144259888,0.77173552,102460.0,102450.0,0.46969695]
[1738144260596,0.77173552,102460.0,102450.0,0.43079438]
[1738144261191,0.81979996,102460.0,102450.0,0.43079438]
[1738144262107,0.77173552,102460.0,102450.0,0.30666844]
[1738144263400,0.41093552,102460.0,102450.0,0.30666844]
[1738144263606,0.77173552,102460.0,102450.0,0.30666844]
[1738144264405,0.77173552,102460.0,102450.0,0.34558669]
[1738144266006,0.77173552,102460.0,102450.0,0.31468669]
[1738144266509,0.41093552,102460.0,102450.0,0.31468669]
[1738144266801,0.81979996,102460.0,102450.0,0.28228669]
[1738144267108,0.91539996,102460.0,102450.0,0.195304]
[1738144267310,0.97362047,102460.0,102450.0,0.195304]
[1738144268508,0.97362047,102460.0,102450.0,0.2342543]
[1738144270210,0.8861703,102460.0,102450.0,0.2342543]
[1738144270506,0.8861703,102460.0,102450.0,0.27698252]
[1738144270711,0.93423474,102460.0,102450.0,0.2342543]
[1738144270907,1.09974474,102460.0,102440.0,0.210001]
[1738144271108,0.60416844,102450.0,102440.0,0.2770268]
[1738144271404,0.195323,102440.0,102430.0,0.30420726]
[1738144271611,0.70078744,102440.0,102430.0,0.27719295]
[1738144271909,0.70078744,102440.0,102430.0,0.32525739]
[1738144273310,0.96416073,102440.0,102430.0,0.32725739]
[1738144274497,0.96416073,102440.0,102430.0,0.34393739]
[1738144275010,0.96416073,102440.0,102430.0,0.32925739]
[1738144275611,0.96416073,102440.0,102430.0,0.34393739]
[1738144277016,0.97367784,102440.0,102430.0,0.34393739]
[1738144279214,0.9256134,102440.0,102430.0,0.34393739]
[1738144279513,0.86714545,102440.0,102430.0,0.34393739]
[1738144279903,0.20490534,102440.0,102430.0,0.73603739]
[1738144280109,0.20490534,102440.0,102430.0,0.61558961]
[1738144282619,0.08829499,102440.0,102430.0,0.61558961]
[1738144282816,0.08829499,102440.0,102430.0,0.97638961]
[1738144283814,0.08829499,102440.0,102430.0,0.61558961]
[1738144284021,0.08829499,102440.0,102430.0,0.97638961]
[1738144285220,0.28361799,102440.0,102430.0,0.87876673]
[1738144285524,0.69248243,102440.0,102430.0,0.26976473]
[1738144285714,0.69248243,102440.0,102430.0,0.23846473]
[1738144286516,0.69248243,102440.0,102430.0,0.04312873]
[1738144286819,0.79048243,102440.0,102430.0,0.04312873]
[1738144287525,0.90709278,102440.0,102430.0,0.00414613]
[1738144287818,0.95515722,102440.0,102430.0,0.00414613]
[1738144288124,0.195342,102430.0,102420.0,9.351e-05]
[1738144288318,0.60420644,102430.0,102420.0,0.03904014]
[1738144288621,0.60420644,102430.0,102420.0,9.351e-05]
[1738144289421,0.60520644,102430.0,102420.0,0.00209351]
[1738144289924,0.60520644,102430.0,102420.0,0.00509351]
[1738144290116,0.75096938,102430.0,102420.0,0.00509351]
[1738144292629,0.75096938,102430.0,102420.0,0.20045451]
[1738144292820,0.75096938,102430.0,102420.0,0.24851895]
[1738144293126,0.86717786,102430.0,102420.0,0.24851895]
[1738144294125,0.50637786,102430.0,102420.0,0.24851895]
[1738144294428,0.86717786,102430.0,102420.0,0.24851895]
[1738144294817,0.86717786,102430.0,102420.0,0.20045451]
[1738144295229,0.86717786,102430.0,102420.0,0.24851895]
[1738144296023,0.87688573,102430.0,102420.0,0.24851895]